bitfinex-derivatives/quotes_SOLF0:USTF0_20250124
["timestamp","ask_amount","ask_price","bid_price","bid_amount"]
[1737716496978,3.7806,264.52,264.47,196.80626802]
[1737716497180,8.92309594,264.65,264.47,193.02496802]
[1737716497385,8.92309594,264.69,264.51,8.92309594]
[1737716497586,8.92309594,264.73,264.55,8.92309594]
[1737716497784,8.92309594,264.78,264.6,8.92309594]
[1737716498089,8.92309594,264.78,264.61,0.02699029]
[1737716498282,3.7778,264.72,264.66,0.02525345]
[1737716498585,8.92309594,264.78,264.66,193.02525345]
[1737716498787,8.92309594,264.74,264.66,193.02525345]
[1737716498980,3.7783,264.68,264.66,193.02525345]
[1737716499784,8.92309594,264.78,264.66,193.02525345]
[1737716500793,8.92309594,264.78,264.66,181.20435345]
[1737716500993,8.92309594,264.78,264.66,162.61495345]
[1737716501494,3.7784,264.68,264.66,162.61495345]
[1737716502294,0.02747862,264.7,264.66,162.61495345]
[1737716505599,0.02747862,264.7,264.66,166.39345345]
[1737716506201,0.02747862,264.7,264.66,162.61495345]
[1737716508199,3.7783,264.68,264.66,162.61495345]
[1737716510601,0.02747862,264.7,264.66,162.61495345]
[1737716511002,0.02747862,264.7,264.67,3.7784]
[1737716511205,0.02747862,264.7,264.66,162.61495345]
[1737716511603,3.7781,264.69,264.66,162.61495345]
[1737716511807,0.02747862,264.7,264.66,162.61495345]
[1737716512201,0.02747862,264.7,264.66,166.39355345]
[1737716512403,0.02747862,264.7,264.66,162.61495345]
[1737716512898,0.02747862,264.7,264.68,3.7782]
[1737716513302,8.92309594,264.82,264.66,162.61495345]
[1737716513505,3.7779,264.71,264.66,166.39335345]
[1737716513806,8.92309594,264.82,264.66,162.61495345]
[1737716514503,10.0974,264.86,264.71,0.02495213]
[1737716516403,10.0974,264.86,264.71,3.80275213]
[1737716516805,10.0974,264.86,264.71,0.02495213]
[1737716517002,8.92309594,264.78,264.71,0.02495213]
[1737716517999,3.7777,264.72,264.71,5.213e-05]
[1737716518905,3.7784,264.67,264.66,150.57890558]
[1737716519204,3.7784,264.67,264.66,120.18641119]
[1737716521107,0.02560132,264.69,264.66,120.18641119]
[1737716522509,0.02560132,264.69,264.66,123.96491119]
[1737716524408,0.02560132,264.69,264.67,3.7784]
[1737716526106,8.92309594,264.87,264.67,295.73014749]
[1737716526415,8.92309594,264.92,264.75,8.92309594]
[1737716526609,8.92309594,264.92,264.76,7.5129]
[1737716527411,8.92309594,264.92,264.81,0.02792766]
[1737716528516,3.7752,264.9,264.82,3.7762]
[1737716528711,3.7752,264.9,264.81,0.02792766]
[1737716529016,3.7751,264.91,264.81,3.80432766]
[1737716529213,8.92309594,264.96,264.81,3.80432766]
[1737716529415,8.92309594,264.96,264.76,7.5129]
[1737716529615,3.7753,264.89,264.86,0.02586974]
[1737716530717,3.7755,264.88,264.86,0.02586974]
[1737716530919,8.92309594,264.96,264.86,0.02586974]
[1737716531313,3.7752,264.9,264.86,0.02586974]
[1737716532614,5.0921,264.99,264.86,0.02586974]
[1737716532818,3.7753,264.89,264.86,120.21228093]
[1737716535317,3.7744,264.96,264.86,123.98788093]
[1737716535522,4.9666,265.1,264.92,8.92309594]
[1737716535719,4.9666,265.1,264.92,129.10950713]
[1737716535921,4.9666,265.1,264.98,0.02635067]
[1737716536320,3.7735,265.02,264.98,0.02635067]
[1737716536621,3.7735,265.02,264.98,120.21276186]
[1737716537618,4.9666,265.1,264.98,120.21276186]
[1737716537822,3.7739,264.99,264.98,120.21276186]
[1737716538024,8.92309594,265.04,264.88,8.92309594]
[1737716538324,8.92309594,265.04,264.88,114.17136186]
[1737716538918,8.92309594,265.0,264.88,114.17136186]
[1737716539123,0.02628159,264.99,264.93,9.095e-05]
[1737716540221,3.7746,264.94,264.93,9.095e-05]
[1737716542721,0.02628159,264.99,264.88,108.49625281]
[1737716542917,3.7753,264.89,264.88,102.49565281]
[1737716543826,3.7763,264.82,264.78,112.13565281]
[1737716544422,3.80441829,264.83,264.78,115.91245281]
[1737716544624,3.7762,264.83,264.78,115.91245281]
[1737716544824,3.80513626,264.83,264.78,112.16463426]
[1737716545527,0.02893626,264.83,264.78,112.16463426]
[1737716545729,3.7764,264.81,264.78,112.16463426]
[1737716545925,0.02893626,264.83,264.78,102.52463426]
[1737716546430,3.7767,264.79,264.78,102.52463426]
[1737716546622,3.7767,264.79,264.78,0.02898145]
[1737716547021,14.22668874,264.82,264.66,129.40953859]
[1737716547228,16.67248874,264.81,264.66,129.40953859]
[1737716547526,16.67248874,264.81,264.66,226.1586914]
[1737716547527,3.778,264.7,264.66,226.1586914]
[1737716547720,16.67248874,264.81,264.66,226.1586914]
[1737716548127,3.7784,264.68,264.66,226.1586914]
[1737716548327,3.7784,264.68,264.66,96.74915281]
[1737716548529,0.02428929,264.7,264.64,3.092e-05]
[1737716548733,0.02428929,264.7,264.59,96.74915281]
[1737716549224,3.7794,264.6,264.59,96.74915281]
[1737716549624,14.22668874,264.65,264.53,129.40953859]
[1737716549832,0.02561637,264.62,264.57,0.02404415]
[1737716550529,3.7797,264.58,264.57,4.415e-05]
[1737716551034,14.22668874,264.6,264.53,129.40953859]
[1737716551533,14.22668874,264.6,264.44,96.74915281]
[1737716551833,14.22668874,264.55,264.44,96.74915281]
[1737716552028,14.25248073,264.55,264.49,0.02389545]
[1737716552635,3.7805,264.53,264.49,0.02389545]
[1737716552937,0.02579199,264.55,264.49,0.02389545]
[1737716554134,3.7805,264.53,264.49,0.02389545]
[1737716554528,0.02579199,264.55,264.49,0.02389545]
[1737716555733,0.02579199,264.55,264.49,3.80489545]
[1737716555932,0.02579199,264.55,264.49,0.02389545]
[1737716556139,0.02579199,264.55,264.49,96.77304826]
[1737716556436,2.4458,264.7,264.5,4.9754]
[1737716556637,2.4458,264.7,264.51,2.409]
[1737716557232,3.7788,264.65,264.58,3.7796]
[1737716557428,0.02575376,264.63,264.58,3.7796]
[1737716557834,0.02575376,264.63,264.57,0.02798191]
[1737716558438,3.7796,264.59,264.57,0.02798191]
[1737716558939,0.02575376,264.63,264.57,0.02798191]
[1737716560028,0.02575376,264.63,264.58,3.7797]
[1737716560234,0.02575376,264.63,264.57,0.02798191]
[1737716561138,0.02575376,264.63,264.57,96.77713472]
[1737716561437,4.8892,264.77,264.58,7.63]
[1737716561638,4.8892,264.77,264.58,104.37915281]
[1737716561934,5.2742,264.78,264.58,104.37915281]
[1737716562440,0.02586362,264.71,264.65,0.02838623]
[1737716563140,3.80376362,264.71,264.65,3.80698623]
[1737716563344,0.02586362,264.71,264.65,0.02838623]
[1737716563737,3.7781,264.7,264.65,0.02838623]
[1737716563932,0.02586362,264.71,264.65,0.02838623]
[1737716564332,3.7784,264.67,264.65,0.02838623]
[1737716564841,3.7784,264.67,264.65,8.623e-05]
[1737716567041,3.7786,264.66,264.65,8.623e-05]
[1737716568744,3.7784,264.68,264.65,8.623e-05]
[1737716568943,0.02586362,264.71,264.65,8.623e-05]
[1737716570145,3.7782,264.69,264.65,8.623e-05]
[1737716570745,3.778,264.7,264.65,3.77878623]
[1737716571246,3.778,264.7,264.65,8.623e-05]
[1737716573244,0.02586362,264.71,264.65,8.623e-05]
[1737716573446,3.7785,264.67,264.65,8.623e-05]
[1737716575244,3.7783,264.68,264.65,8.623e-05]
[1737716575544,0.02586362,264.71,264.65,8.623e-05]
[1737716576156,0.02586362,264.71,264.65,96.74923904]
[1737716577051,0.02586362,264.71,264.69,3.7781]
[1737716577544,0.02586362,264.71,264.65,96.74923904]
[1737716577751,0.02586362,264.71,264.68,3.7783]
[1737716578750,0.02586362,264.71,264.65,96.74923904]
[1737716578945,0.02586362,264.71,264.69,3.7781]
[1737716579149,0.02586362,264.71,264.69,96.74915281]
[1737716580252,0.02586362,264.71,264.7,3.778]
[1737716581855,3.7773,264.76,264.71,3.7778]
[1737716582155,3.7773,264.76,264.71,96.74915281]
[1737716582653,21.77608874,264.94,264.76,3.777]
[1737716583154,3.7761,264.83,264.82,0.02664707]
[1737716583855,0.02500356,264.88,264.82,0.02664707]
[1737716584052,3.7761,264.83,264.82,0.02664707]
[1737716584363,0.02500356,264.88,264.82,0.02664707]
[1737716584555,3.7757,264.86,264.82,96.77579988]
[1737716584754,0.02500356,264.88,264.82,96.77579988]
[1737716585254,3.7757,264.86,264.82,96.77579988]
[1737716585451,0.02500356,264.88,264.82,96.77579988]
[1737716585758,3.7761,264.83,264.82,96.77579988]
[1737716589455,3.7776,264.73,264.72,7.5516]
[1737716589654,14.22668874,264.84,264.72,7.5516]
[1737716589861,14.22668874,264.84,264.72,97.65849988]
[1737716590163,3.7763,264.83,264.75,3.7772]
[1737716590462,14.22668874,264.89,264.75,3.7772]
[1737716590764,3.7769,264.78,264.76,0.02663493]
[1737716591061,0.02758369,264.82,264.76,0.02663493]
[1737716591264,14.22668874,264.79,264.62,245.05131459]
[1737716591760,3.7779,264.71,264.62,245.05131459]
[1737716592057,3.7779,264.71,264.62,219.51643847]
[1737716592463,0.02597876,264.71,264.66,2.41504388]
[1737716593462,0.02597876,264.71,264.66,6.19354388]
[1737716593765,0.02597876,264.71,264.66,2.41504388]
[1737716594064,0.02597876,264.71,264.66,0.02504388]
[1737716594266,3.778,264.7,264.66,0.02504388]
[1737716594460,0.02597876,264.71,264.66,0.02504388]
[1737716596267,3.7783,264.68,264.66,0.02504388]
[1737716597167,0.02597876,264.71,264.66,0.02504388]
[1737716597367,14.22668874,264.86,264.66,90.13194376]
[1737716597563,14.22668874,264.91,264.67,5.0541]
[1737716597769,3.7759,264.85,264.67,5.0541]
[1737716597970,14.22668874,264.91,264.67,5.0541]
[1737716598566,0.02790339,264.82,264.76,0.02436911]
[1737716598769,0.02790339,264.82,264.76,90.13126899]
[1737716599166,0.02790339,264.82,264.78,3.7768]
[1737716600470,3.7765,264.81,264.76,90.13126899]
[1737716600670,0.02790339,264.82,264.76,90.13126899]
[1737716600872,3.777,264.78,264.76,90.13126899]
[1737716602772,3.777,264.78,264.76,0.02436911]
[1737716602966,0.02790339,264.82,264.76,0.02436911]
[1737716602967,3.80420339,264.82,264.76,0.02436911]
[1737716603166,0.02790339,264.82,264.76,0.02436911]
[1737716603371,0.02790339,264.82,264.78,3.7768]
[1737716603868,0.02790339,264.82,264.79,3.7767]
[1737716605676,0.02790339,264.82,264.77,3.7769]
[1737716608378,3.80420339,264.82,264.77,3.7769]
[1737716608571,0.02790339,264.82,264.76,0.02436911]
[1737716608770,3.7765,264.81,264.76,3.80146911]
[1737716609181,3.7765,264.81,264.77,3.7769]
[1737716610078,0.02790339,264.82,264.76,0.02436911]
[1737716611075,3.7768,264.79,264.76,0.02436911]
[1737716612479,3.777,264.78,264.76,0.02436911]
[1737716614584,707.36536464,264.78,264.76,0.02436911]
[1737716614978,3.777,264.77,264.76,0.02436911]
[1737716628195,8.9013011,264.81,264.76,0.02436911]
[1737716628401,3.777,264.77,264.76,0.02436911]
[1737716629502,3.777,264.77,264.73,3.45763911]
[1737716630494,3.7768,264.79,264.74,3.7774]
[1737716630796,8.9013011,264.81,264.74,3.7774]
[1737716631000,0.02778776,264.79,264.74,3.7774]
[1737716632105,3.7769,264.78,264.74,3.7774]
[1737716633205,3.7775,264.74,264.72,0.02482616]
[1737716633406,8.9013011,264.77,264.72,0.02482616]
[1737716633600,8.9013011,264.73,264.67,90.10689988]
[1737716633804,3.7784,264.67,264.66,51.18677614]
[1737716634703,707.36676464,264.67,264.66,45.50887614]
[1737716634897,707.36676464,264.67,264.62,154.94441471]
[1737716634898,703.58836464,264.67,264.64,0.02402951]
[1737716635098,8.9013011,264.68,264.64,0.02402951]
[1737716635807,3.7785,264.67,264.64,0.02402951]
[1737716636007,8.9013011,264.68,264.64,0.02402951]
[1737716636504,12.6796011,264.68,264.64,0.02402951]
[1737716637007,3.7786,264.66,264.64,0.02402951]
[1737716639309,3.7786,264.66,264.64,2.951e-05]
[1737716640209,8.9013011,264.61,264.48,96.55610857]
[1737716640410,14.1898011,264.65,264.48,96.55610857]
[1737716640610,8.9013011,264.65,264.48,96.55610857]
[1737716641410,0.02642822,264.59,264.54,0.02653836]
[1737716641809,0.02642822,264.59,264.48,90.10689988]
[1737716642815,3.80602822,264.59,264.52,3.7804]
[1737716643011,3.80602822,264.59,264.51,0.02651586]
[1737716643810,0.02642822,264.59,264.51,0.02651586]
[1737716644019,0.02642822,264.59,264.58,3.7797]
[1737716644316,3.7788,264.64,264.58,90.10689988]
[1737716644516,3.7788,264.65,264.59,3.7796]
[1737716644814,8.9013011,264.73,264.58,90.10689988]
[1737716645017,14.1898011,264.77,264.58,99.00820098]
[1737716645615,0.02535477,264.7,264.65,0.02747973]
[1737716647321,0.02535477,264.7,264.67,3.7784]
[1737716647522,0.02535477,264.7,264.67,93.88529988]
[1737716648019,0.02535477,264.7,264.67,90.10689988]
[1737716648224,0.02535477,264.7,264.68,3.7783]
[1737716648722,3.7771,264.77,264.7,3.7779]
[1737716648921,8.9013011,264.81,264.7,3.7779]
[1737716649122,8.9013011,264.81,264.7,93.88479988]
[1737716649620,3.7773,264.75,264.7,90.10689988]
[1737716649823,3.7773,264.75,264.73,0.02855168]
[1737716651523,3.7772,264.76,264.73,0.02855168]
[1737716652022,0.02856872,264.78,264.73,0.02855168]
[1737716652419,0.02856872,264.78,264.73,90.13545156]
[1737716653124,0.02856872,264.78,264.75,3.7772]
[1737716654324,3.76,264.98,264.75,3.7772]
[1737716654325,20.2313011,265.07,264.75,90.10689988]
[1737716654517,3.7753,264.9,264.82,3.7762]
[1737716654822,3.7753,264.9,264.79,2.6425]
[1737716655022,3.7753,264.9,264.83,3.7761]
[1737716655419,0.02699707,264.89,264.84,0.02530739]
[1737716656722,3.80229707,264.89,264.84,3.80130739]
[1737716657024,3.80229707,264.89,264.84,0.02530739]
[1737716658727,3.80229707,264.89,264.84,0.02530739]
[1737716659131,0.02699707,264.89,264.84,0.02530739]
[1737716659432,12.6772011,264.85,264.84,0.02530739]
[1737716660830,3.7758,264.86,264.84,0.02530739]
[1737716661030,8.92829817,264.89,264.84,0.02530739]
[1737716661328,0.02699707,264.89,264.84,0.02530739]
[1737716662928,3.80229707,264.89,264.84,0.02530739]
[1737716663230,3.80229707,264.89,264.84,3.80130739]
[1737716663530,3.7757,264.86,264.84,0.02530739]
[1737716663729,8.92829817,264.89,264.84,0.02530739]
[1737716664033,3.7759,264.85,264.84,0.02530739]
[1737716666133,12.6772011,264.85,264.84,0.02530739]
[1737716667330,12.6772011,264.85,264.84,7.39e-06]
[1737716667637,3.7766,264.8,264.79,90.10689988]
[1737716667832,8.9013011,264.85,264.71,95.30009988]
[1737716668036,8.9013011,264.85,264.75,3.7773]
[1737716668739,0.02383513,264.83,264.77,0.02606157]
[1737716669241,3.7767,264.79,264.77,0.02606157]
[1737716670534,3.7769,264.78,264.77,0.02606157]
[1737716675042,3.7769,264.78,264.77,6.157e-05]
[1737716679944,3.7764,264.82,264.77,6.157e-05]
[1737716680241,0.02383513,264.83,264.77,6.157e-05]
[1737716680742,0.02383513,264.83,264.78,3.7767]
[1737716682338,8.9013011,264.93,264.78,90.10689988]
[1737716682641,3.7752,264.9,264.79,2.4945]
[1737716682842,8.9013011,264.93,264.79,92.60139988]
[1737716683244,3.7746,264.94,264.79,92.60139988]
[1737716683742,0.02620102,264.89,264.84,0.02594891]
[1737716684250,0.02620102,264.89,264.87,3.7755]
[1737716684746,0.02620102,264.89,264.87,93.88239988]
[1737716686050,8.9013011,265.01,264.87,90.10689988]
[1737716686549,8.9013011,265.01,264.95,3.7744]
[1737716687348,8.93019348,265.01,264.95,3.80041603]
[1737716687851,0.02889238,265.01,264.95,3.80041603]
[1737716688847,0.02889238,265.01,264.96,3.7743]
[1737716690551,0.02889238,265.01,264.95,3.80031603]
[1737716690747,0.02889238,265.01,264.95,0.02601603]
[1737716691851,0.02889238,265.01,264.96,3.7741]
[1737716692655,3.7743,264.96,264.95,0.02601603]
[1737716698453,8.9013011,264.97,264.84,3.7759]
[1737716698659,3.7757,264.87,264.82,90.10689988]
[1737716698857,8.9013011,264.88,264.82,90.10689988]
[1737716699554,8.9013011,264.94,264.73,4.5046]
[1737716699555,8.9013011,264.84,264.73,94.61149988]
[1737716699751,8.9013011,264.84,264.82,0.02625196]
[1737716699957,8.9013011,264.84,264.73,97.03749988]
[1737716700156,8.9013011,264.84,264.8,0.02389113]
[1737716700962,3.7764,264.81,264.8,9.113e-05]
[1737716703757,8.9013011,264.84,264.8,90.10699101]
[1737716703958,8.9013011,264.94,264.8,90.10699101]
[1737716704161,8.9013011,264.94,264.81,4.8002]
[1737716704361,3.7747,264.93,264.85,3.7757]
[1737716705166,0.02547147,264.92,264.86,0.02695677]
[1737716705563,0.02547147,264.92,264.86,3.80255677]
[1737716705763,0.02547147,264.92,264.86,0.02695677]
[1737716706266,0.02547147,264.92,264.87,3.7755]
[1737716707166,0.02547147,264.92,264.88,3.7754]
[1737716707973,8.9013011,265.02,264.88,90.10689988]
[1737716708172,8.9013011,265.06,264.88,90.10689988]
[1737716708971,3.7732,265.04,264.95,3.7743]
[1737716709271,0.02405037,265.0,264.95,3.7743]
[1737716709673,0.02405037,265.0,264.94,0.02632461]
[1737716709873,0.02405037,265.0,264.96,3.7743]
[1737716710075,0.02405037,265.0,264.96,93.88119988]
[1737716711177,0.02405037,265.0,264.96,90.10689988]
[1737716711377,0.02405037,265.0,264.97,3.7741]
[1737716711773,0.02405037,265.0,264.96,90.10689988]
[1737716712577,8.9013011,265.1,264.96,90.10689988]
[1737716712875,8.9013011,265.14,264.96,90.10689988]
[1737716713179,8.9013011,265.14,264.97,4.7132]
[1737716713773,0.02835889,265.08,265.03,0.02643112]
[1737716714173,3.7728,265.07,265.03,0.02643112]
[1737716714378,0.02835889,265.08,265.03,0.02643112]
[1737716714679,3.773,265.06,265.03,0.02643112]
[1737716714978,0.02835889,265.08,265.03,0.02643112]
[1737716715473,3.7731,265.05,265.03,0.02643112]
[1737716715979,8.9013011,265.06,265.03,0.02643112]
[1737716716282,3.7731,265.04,265.03,3.112e-05]
[1737716720587,3.773,265.05,265.03,3.112e-05]
[1737716722285,3.7729,265.06,265.03,3.112e-05]
[1737716723280,0.02835889,265.08,265.03,3.112e-05]
[1737716724185,3.773,265.05,265.03,3.112e-05]
[1737716724379,0.02835889,265.08,265.03,3.112e-05]
[1737716724577,8.9013011,265.06,265.03,3.112e-05]
[1737716724986,3.7731,265.04,265.03,3.112e-05]
[1737716728581,8.9013011,265.06,264.96,90.10689988]
[1737716728887,3.7741,264.97,264.96,90.10689988]
[1737716729090,8.9013011,265.0,264.87,93.88239988]
[1737716729589,8.9013011,265.0,264.91,3.775]
[1737716729789,0.02506442,264.97,264.92,0.02635394]
[1737716729989,3.79916442,264.97,264.93,3.7746]
[1737716730190,0.02506442,264.97,264.92,0.02635394]
[1737716731590,3.7746,264.94,264.92,0.02635394]
[1737716732491,3.7747,264.93,264.92,0.02635394]
[1737716733890,3.7767,264.79,264.78,124.09388034]
[1737716734091,3.7767,264.79,264.78,124.07004521]
[1737716734786,3.7773,264.75,264.69,2.6147]
[1737716735087,3.7773,264.75,264.72,0.0269649]
[1737716736589,8.9013011,264.76,264.72,0.0269649]
[1737716736790,0.02540148,264.77,264.72,0.0269649]
[1737716739488,703.61376612,264.77,264.72,0.0269649]
[1737716740190,3.7774,264.75,264.72,0.0269649]
[1737716740583,0.02540148,264.77,264.72,0.0269649]
[1737716741693,3.7775,264.74,264.72,0.0269649]
[1737716742791,3.7773,264.75,264.72,0.0269649]
[1737716743191,0.02540148,264.77,264.72,0.0269649]
[1737716743393,0.02540148,264.77,264.72,3.8045649]
[1737716743788,0.02540148,264.77,264.72,0.0269649]
[1737716743990,0.02540148,264.77,264.74,3.7774]
[1737716744189,0.02540148,264.77,264.72,0.0269649]
[1737716744687,0.02540148,264.77,264.73,3.7775]
[1737716744887,0.02540148,264.77,264.73,90.10689988]
[1737716745092,8.9013011,264.88,264.73,90.10689988]
[1737716745301,12.6768011,264.88,264.82,3.7762]
[1737716745691,12.6768011,264.88,264.74,8.9013011]
[1737716745991,3.7752,264.9,264.74,99.00820098]
[1737716746195,0.02511468,264.84,264.78,0.02449558]
[1737716746894,0.02511468,264.84,264.82,3.7762]
[1737716748095,0.02511468,264.84,264.78,90.13139546]
[1737716750098,0.02511468,264.84,264.82,3.7762]
[1737716750998,0.02511468,264.84,264.83,3.7761]
[1737716752391,8.9013011,264.96,264.9,3.7751]
[1737716752793,8.9013011,264.96,264.79,94.63329988]
[1737716753097,3.7746,264.94,264.88,3.7753]
[1737716753497,3.8025695,264.94,264.88,3.79927334]
[1737716753992,0.0279695,264.94,264.9,3.7751]
[1737716755797,0.0279695,264.94,264.88,0.02397334]
[1737716756399,8.9013011,264.92,264.88,0.02397334]
[1737716756795,3.7753,264.89,264.88,0.02397334]
[1737716757792,8.9013011,264.92,264.88,0.02397334]
[1737716757999,12.6763011,264.92,264.88,0.02397334]
[1737716760499,8.9013011,264.92,264.88,0.02397334]
[1737716762103,3.7752,264.9,264.88,0.02397334]
[1737716763405,0.0279695,264.94,264.88,0.02397334]
[1737716764505,0.0279695,264.94,264.9,3.7751]
[1737716766108,3.8025695,264.94,264.9,3.7751]
[1737716767402,3.8025695,264.94,264.9,93.88199988]
[1737716767706,8.9013011,265.08,264.9,99.00820098]
[1737716767900,8.9013011,265.08,264.91,7.3536]
[1737716768101,3.7724,265.1,264.99,3.7738]
[1737716768404,8.9013011,265.12,264.99,90.10689988]
[1737716768904,0.02675404,265.08,265.03,0.02508699]
[1737716770809,0.02675404,265.08,265.05,3.7729]
[1737716771208,8.92805514,265.08,265.03,0.02508699]
[1737716771410,3.7731,265.05,265.03,0.02508699]
[1737716772405,0.02675404,265.08,265.03,0.02508699]
[1737716772610,8.9013011,265.2,265.1,3.7723]
[1737716772912,8.9013011,265.2,265.1,93.87919988]
[1737716773610,3.7719,265.13,265.1,90.10689988]
[1737716773807,3.7719,265.13,265.12,0.02789238]
[1737716774112,0.02659685,265.18,265.12,0.02789238]
[1737716774308,3.7716,265.15,265.12,0.02789238]
[1737716775213,0.02659685,265.18,265.12,0.02789238]
[1737716775714,3.7714,265.17,265.12,0.02789238]
[1737716775911,0.02659685,265.18,265.12,0.02789238]
[1737716776806,8.9013011,265.16,265.12,0.02789238]
[1737716777004,8.9013011,265.16,265.12,9.238e-05]
[1737716777209,3.7717,265.14,265.12,9.238e-05]
[1737716777711,3.7721,265.11,265.1,77.27389226]
[1737716777915,8.9013011,265.11,264.97,2.4317]
[1737716778115,8.9013011,265.11,264.97,79.70559226]
[1737716778818,0.0285071,265.07,265.01,0.02897261]
[1737716780116,3.8012071,265.07,265.01,0.02897261]
[1737716780717,3.8012071,265.07,265.01,0.37988261]
[1737716780920,3.8012071,265.07,265.01,4.15338261]
[1737716781113,1223.0,265.06,265.01,4.15338261]
[1737716781413,3.8012071,265.07,265.01,81.42727487]
[1737716782212,3.8012071,265.07,265.01,77.65377487]
[1737716782411,3.7734,265.02,265.01,77.65377487]
[1737716783520,3.7734,265.02,265.01,66.14512083]
[1737716783722,3.7734,265.02,265.01,54.67602083]
[1737716784615,8.8804643,265.04,264.99,0.02488469]
[1737716784812,8.8804643,265.0,264.88,7.1934]
[1737716785016,8.8804643,265.0,264.99,0.0273432]
[1737716785219,8.8804643,265.0,264.82,193.0]
[1737716785415,8.8804643,264.95,264.82,193.0]
[1737716785617,7.3883,265.05,264.92,3.7748]
[1737716785618,8.8804643,265.03,264.92,3.7748]
[1737716786013,8.8804643,265.03,264.85,201.8804643]
[1737716786220,0.02808022,264.97,264.91,0.02755897]
[1737716787021,0.02808022,264.97,264.91,3.80255897]
[1737716787221,0.02808022,264.97,264.91,0.02755897]
[1737716787814,3.7745,264.95,264.91,0.02755897]
[1737716788016,0.02808022,264.97,264.91,0.02755897]
[1737716789320,0.02808022,264.97,264.92,3.7748]
[1737716791126,0.02808022,264.97,264.93,3.7747]
[1737716794030,0.02808022,264.97,264.94,3.7746]
[1737716794726,0.02808022,264.97,264.91,0.02755897]
[1737716795325,0.02808022,264.97,264.94,3.7746]
[1737716796224,0.02808022,264.97,264.91,0.02755897]
[1737716796425,0.02808022,264.97,264.92,3.7747]
[1737716797028,3.80228022,264.97,264.92,3.7748]
[1737716797225,0.02808022,264.97,264.91,0.02755897]
[1737716797630,3.7744,264.95,264.91,0.02755897]
[1737716798130,0.02808022,264.97,264.91,0.02755897]
[1737716798330,3.7743,264.96,264.91,0.02755897]
[1737716799133,0.02808022,264.97,264.91,0.02755897]
[1737716799832,0.02808022,264.97,264.93,3.7747]
[1737716802935,3.7743,264.96,264.91,3.80245897]
[1737716803234,0.02808022,264.97,264.91,0.02755897]
[1737716803934,3.80218022,264.97,264.93,3.7747]
[1737716804234,0.02808022,264.97,264.93,3.7747]
[1737716804636,0.02808022,264.97,264.94,3.7745]
[1737716805434,0.02808022,264.97,264.91,0.02755897]
[1737716806137,0.02808022,264.97,264.95,3.7744]
[1737716807236,0.02808022,264.97,264.91,0.02755897]
[1737716807441,3.7724,265.1,265.04,3.7731]
[1737716807737,3.7724,265.1,264.95,8.8804643]
[1737716807933,12.6526643,265.11,264.99,3.7737]
[1737716808232,12.6526643,265.11,264.95,201.8804643]
[1737716808637,0.02454059,265.06,265.05,3.7729]
[1737716809439,0.02454059,265.06,265.04,3.7731]
[1737716810136,0.02454059,265.06,265.03,0.02523678]
[1737716810347,0.02454059,265.06,265.05,3.773]
[1737716812833,0.02454059,265.06,265.04,3.7731]
[1737716813737,0.02454059,265.06,265.05,3.773]
[1737716814335,703.61290523,265.06,265.05,3.773]
[1737716814539,680.25928545,265.06,265.05,3.773]
[1737716814735,665.23568545,265.06,265.05,3.773]
[1737716816346,617.56248545,265.06,265.05,3.773]
[1737716819548,539.36673922,265.06,265.05,3.773]
[1737716819943,526.60023922,265.06,265.05,3.773]
[1737716820140,499.78513922,265.06,265.05,3.773]
[1737716820552,473.25136573,265.06,265.05,3.773]
[1737716821144,467.58076573,265.06,265.05,3.773]
[1737716821343,455.52966573,265.06,265.05,3.773]
[1737716821548,407.64772937,265.06,265.05,12.6534643]
[1737716821851,860.87762937,265.06,265.05,12.6534643]
[1737716822052,782.17837705,265.06,265.05,13.32675426]
[1737716822251,774.17837705,265.06,265.05,13.32675426]
[1737716822448,695.98263082,265.06,265.05,13.32675426]
[1737716822649,695.22263082,265.06,265.05,13.32675426]
[1737716822847,647.34863082,265.06,265.05,13.32675426]
[1737716823252,620.81485733,265.06,265.05,13.32675426]
[1737716823451,541.89678882,265.06,265.05,13.32675426]
[1737716823851,541.89678882,265.06,265.05,4.44628996]
[1737716823852,535.27348882,265.06,265.05,4.44628996]
[1737716824155,535.27348882,265.06,265.04,3.7731]
[1737716824350,0.02482337,265.08,265.04,292.0]
[1737716824853,0.02482337,265.08,265.04,485.0]
[1737716825051,2.28,265.16,265.04,485.0]
[1737716825246,8.8804643,265.15,265.04,485.0]
[1737716825847,3.7725,265.09,265.04,485.0]
[1737716826151,3.80018242,265.09,265.04,485.0]
[1737716826456,3.7727,265.08,265.04,485.0]
[1737716826948,0.02768242,265.09,265.04,485.0]
[1737716829347,0.02768242,265.09,265.05,3.7729]
[1737716831655,0.02768242,265.09,265.05,488.7729]
[1737716832156,2.28,265.1,265.09,192.97231758]